Workbook

Sheet Лист1
A1: Согласовано: | F1: Утверждаю:
A2: Мед.сестра ГБУЗ НСО ККДП №27 | D2: Заведующи МАДОУ д/с №10
A3: ________________ Ю.Н. Иванова | D3: _______________Г.Н. Лядова
D4: "_____"____________20____г.
B5: МЕНЮ-ПЕРЕЧЕНЬ на 05.12.2025
A7: Прием | B7: Блюдо | C7: Диетический | E7: Выход, гр. | G7: Калорийность
A8: пищи | C8: режим | E8: ясли | F8: сад | G8: ясли | H8: сад
A9: Завтрак | B9: Каша "Дружба" молочная с маслом | C9: Дети | E9: 180 | F9: 200 | G9: 152 | H9: 169
B10: Кофейный напиток с молоком | E10: 150 | F10: 180 | G10: 91 | H10: 101
B11: Бутерброд с маслом и сыром | E11: 20\5\8 | F11: 30\7\12 | G11: 109 | H11: 135
B12: всего | E12: =E9+E10+33 -> 363 | F12: =F9+F10+49 -> 429 | G12: =G9+G10+G11 -> 352 | H12: =H9+H10+H11 -> 405
A13: Завтрак 2
B14: всего | E14: =E13 -> 0 | F14: =F13 -> 0 | G14: 0 | H14: 0
A15: Обед | B15: Россольник со сметаной и птицей | E15: 180 | F15: 200 | G15: 86 | H15: 96
B16: Капуста тушеная | E16: 130 | F16: 150 | G16: 97 | H16: 112
B17: Тефтели мясные | E17: 70 | F17: 80 | G17: 90 | H17: 103
B18: Компот из изюма, кураги, чернослива | E18: 150 | F18: 180 | G18: 101 | H18: 113
B19: Хлеб ржаной | E19: 40 | F19: 50 | G19: 69 | H19: 87
B20: Хлеб пшеничный | E20: 20 | F20: 25 | G20: 48 | H20: 60
B21: всего | E21: =E15+E16+E17+E18+E19+E20 -> 590 | F21: =F15+F16+F17+F18+F19+F20 -> 685 | G21: =G15+G16+G17+G18+G19+G20 -> 491 | H21: =H15+H16+H17+H18+H19+H20 -> 571
A22: Полдник | B22: Сок | E22: 200 | F22: 200 | G22: 84 | H22: 84
B23: Печенье | E23: 22 | F23: 38 | G23: 95 | H23: 163
B24: Всего | E24: =E22+E23 -> 222 | F24: =F22+F23 -> 238 | G24: 179 | H24: 247
A25: Ужин | B25: Суп с рыбными консервами | E25: 180 | F25: 200 | G25: 120 | H25: 134
B26: Чай с сахаром и лимоном | E26: 180\5 | F26: 200\5 | G26: 43 | H26: 47
B27: Хлеб пшеничный | E27: 20 | F27: 25 | G27: 48 | H27: 60
B28: Всего | E28: =E25+E27+185 -> 385 | F28: =F25+F27+185 -> 410 | G28: =G25+G26+G27 -> 211 | H28: =H25+H26+H27 -> 241
A29: Всего за день кКалл | G29: =G12+G14+G21+G24+G28 -> 1233 | H29: =H12+ H14+H21+H24+H28 -> 1464
C31: Составил Сидорова О.А.________________
